bitfinex/quotes_SOLUSD_20241223
["timestamp","ask_amount","ask_price","bid_price","bid_amount"]
[1734949996040,23.776884,184.46,184.33,20.36943734]
[1734949996218,20.0,184.43,184.33,20.36943734]
[1734949996542,20.0,184.43,184.35,20.36943734]
[1734949996765,20.0,184.44,184.35,20.36943734]
[1734949997323,1.01673493,184.43,184.33,20.36943734]
[1734949998646,1.01673493,184.43,184.34,20.36943734]
[1734949998847,1.01667968,184.46,184.35,22.02313734]
[1734949999055,1.01667968,184.46,184.35,1.6537]
[1734949999353,1.01667968,184.46,184.32,20.36943734]
[1734950000227,20.0,184.44,184.32,20.36943734]
[1734950000430,1.01693437,184.43,184.32,20.36943734]
[1734950003124,20.0,184.39,184.3,2.2548571]
[1734950003469,1.01723592,184.38,184.3,0.6821571]
[1734950005173,7.06553592,184.38,184.3,0.6821571]
[1734950005375,20.0,184.35,184.3,0.6821571]
[1734950005666,21.01743439,184.34,184.3,0.6821571]
[1734950006030,1.01743439,184.34,184.3,0.6821571]
[1734950007362,20.0,184.31,184.3,0.6821571]
[1734950007548,21.01762634,184.31,184.3,0.6821571]
[1734950007871,44.79451034,184.31,184.3,0.4981571]
[1734950009078,51.11611034,184.31,184.18,20.36943734]
[1734950009280,20.0,184.27,184.18,20.36943734]
[1734950009494,1.01773892,184.26,184.18,20.36943734]
[1734950010465,1.01771684,184.27,184.18,20.36943734]
[1734950010791,1.01771684,184.27,184.17,20.36943734]
[1734950010967,1.01771684,184.27,184.15,0.77126731]
[1734950010968,1.01771684,184.27,184.18,20.36943734]
[1734950011971,20.0,184.28,184.2,20.36943734]
[1734950012153,6.353,184.35,184.24,20.36943734]
[1734950012356,7.37031519,184.35,184.27,20.36943734]
[1734950012600,1.01719425,184.34,184.26,20.36943734]
[1734950012770,1.01719425,184.34,184.25,20.36943734]
[1734950012955,1.01719425,184.34,184.26,20.36943734]
[1734950013391,6.353,184.35,184.26,20.36943734]
[1734950013550,1.01725058,184.34,184.26,20.36943734]
[1734950014273,6.353,184.35,184.26,20.36943734]
[1734950015802,20.0,184.36,184.28,20.36943734]
[1734950015964,20.0,184.36,184.3,20.36943734]
[1734950016164,20.0,184.36,184.3,12.72963386]
[1734950016798,9.1,184.35,184.3,12.72963386]
[1734950017583,9.1,184.35,184.32,12.72963386]
[1734950019389,9.1,184.35,184.34,12.72963386]
[1734950019672,1.01667367,184.43,184.32,12.72963386]
[1734950021118,20.0,184.41,184.32,12.72963386]
[1734950021880,1.0168735,184.4,184.3,12.72963386]
[1734950022074,1.0168735,184.4,184.29,1.5221]
[1734950022909,1.0168735,184.4,184.29,14.25173386]
[1734950024094,1.0168735,184.4,184.29,1.5221]
[1734950024297,23.776884,184.39,184.29,1.5221]
[1734950024603,20.0,184.36,184.25,14.32903386]
[1734950024789,7.04328896,184.35,184.25,1.5994]
[1734950024989,20.0,184.32,184.25,1.5994]
[1734950026002,7.04328896,184.35,184.25,14.32903386]
[1734950027722,20.0,184.36,184.25,14.32903386]
[1734950028007,1.01721357,184.35,184.25,14.32903386]
[1734950028794,1.01723729,184.36,184.25,14.32903386]
[1734950029805,1.01721828,184.39,184.29,12.72963386]
[1734950030205,1.01721828,184.39,184.27,12.72963386]
[1734950030420,23.776884,184.38,184.25,14.32903386]
[1734950030651,1.01735297,184.37,184.25,1.5994]
[1734950031007,20.0,184.35,184.21,14.28073386]
[1734950031211,20.0,184.3,184.21,14.28073386]
[1734950031418,1.01763291,184.29,184.21,14.28073386]
[1734950031803,1.01763291,184.29,184.21,1.5511]
[1734950032007,1.01752461,184.32,184.23,12.72963386]
[1734950032507,1.01752461,184.32,184.21,14.28073386]
[1734950033331,1.0176092,184.31,184.21,14.28073386]
[1734950033533,20.0,184.3,184.21,14.28073386]
[1734950033834,1.01759101,184.29,184.21,14.28073386]
[1734950035542,20.0,184.3,184.21,14.28073386]
[1734950035712,1.01755401,184.32,184.21,14.28073386]
[1734950036709,1.01744765,184.34,184.23,12.72963386]
[1734950037318,1.01737784,184.37,184.23,12.72963386]
[1734950038259,20.0,184.35,184.23,12.72963386]
[1734950038436,1.01739614,184.34,184.23,12.72963386]
[1734950038756,1.01734775,184.37,184.25,12.72963386]
[1734950039063,1.01734775,184.37,184.27,12.72963386]
[1734950039624,1.01734775,184.37,184.25,12.72963386]
[1734950039862,6.458,184.4,184.25,12.72963386]
[1734950039863,1.01728428,184.36,184.25,12.72963386]
[1734950040151,1.01727305,184.39,184.25,12.72963386]
[1734950040656,20.0,184.35,184.25,12.72963386]
[1734950040866,1.01729397,184.34,184.27,12.72963386]
[1734950041157,20.0,184.35,184.28,1.6264]
[1734950041469,20.0,184.37,184.28,1.6264]
[1734950041849,1.01706059,184.43,184.32,12.72963386]
[1734950042164,1.01706059,184.43,184.28,151.05603386]
[1734950042365,4.98397227,184.43,184.28,138.3264]
[1734950043090,23.776884,184.42,184.28,138.3264]
[1734950043284,20.0,184.37,184.28,1.6264]
[1734950043587,1.01732611,184.36,184.28,1.6264]
[1734950047250,1.01718376,184.39,184.28,14.35603386]
[1734950047594,1.01718376,184.39,184.29,12.72963386]
[1734950047782,1.01718376,184.39,184.28,1.6264]
[1734950048261,1.0172675,184.38,184.28,1.6264]
[1734950048467,1.01725148,184.43,184.28,1.6264]
[1734950048654,1.01725148,184.43,184.33,12.72963386]
[1734950049754,20.0,184.41,184.33,12.72963386]
[1734950049953,1.01684264,184.4,184.33,12.72963386]
[1734950050174,20.0,184.41,184.33,12.72963386]
[1734950050592,6.0449,184.48,184.35,12.72963386]
[1734950050757,1.01663795,184.47,184.37,12.72963386]
[1734950051087,7.06142754,184.48,184.39,12.72963386]
[1734950051265,1.01652754,184.48,184.39,12.72963386]
[1734950051468,1.01652754,184.48,184.38,0.76888871]
[1734950051469,16.692742,184.5,184.41,12.72963386]
[1734950051776,15.67625933,184.5,184.42,12.72963386]
[1734950051956,8.37957439,184.53,184.44,12.72963386]
[1734950052153,1.01624492,184.52,184.44,12.72963386]
[1734950052359,1.01624492,184.54,184.45,12.72963386]
[1734950052961,1.01618149,184.55,184.45,12.72963386]
[1734950053994,1.01618149,184.55,184.44,12.72963386]
[1734950054294,20.0,184.53,184.44,12.72963386]
[1734950054473,6.6117,184.56,184.47,12.72963386]
[1734950054655,6.6117,184.56,184.47,13.49754845]
[1734950054993,1.01618038,184.59,184.48,12.72963386]
[1734950055283,1.01618038,184.59,184.49,13.49747672]
[1734950055575,1.01618038,184.59,184.5,12.72963386]
[1734950055783,1.01618038,184.59,184.41,1.5707]
[1734950055970,20.0,184.55,184.41,1.5707]
[1734950056173,4.98338586,184.54,184.41,1.5707]
[1734950056360,4.98338586,184.54,184.42,12.72963386]
[1734950058383,23.776884,184.53,184.42,12.72963386]
[1734950058578,20.0,184.5,184.42,12.72963386]
[1734950058801,1.0164349,184.49,184.36,1.5787]
[1734950059089,20.0,184.48,184.36,14.30833386]
[1734950059292,1.01668796,184.47,184.36,14.30833386]
[1734950059584,1.01659949,184.5,184.42,12.72963386]
[1734950066388,20.0,184.52,184.45,12.72963386]
[1734950066588,1.01627569,184.54,184.45,12.72963386]
[1734950067895,6.39452571,184.59,184.49,12.72963386]
[1734950068078,1.01599012,184.58,184.49,12.72963386]
[1734950068466,7.8139,184.57,184.46,0.76807574]
[1734950068665,1.4418,184.54,184.29,138.2021]
[1734950068874,1.01689299,184.53,184.39,12.72963386]
[1734950069066,20.0,184.49,184.41,12.72963386]
[1734950069394,1.01649405,184.48,184.41,12.72963386]
[1734950069980,1.01649405,184.48,184.39,12.72963386]
[1734950070374,1.01649405,184.48,184.37,12.72963386]
[1734950070685,1.01649405,184.48,184.39,12.72963386]
[1734950075471,1.01649405,184.48,184.37,12.72963386]
[1734950076283,1.01649405,184.48,184.39,12.72963386]
[1734950077198,1.01649319,184.51,184.45,12.72963386]
[1734950077396,1.01626399,184.53,184.45,12.72963386]
[1734950079272,20.0,184.51,184.45,12.72963386]
[1734950079478,6.3721,184.54,184.47,12.72963386]
[1734950080510,6.3721,184.54,184.49,12.72963386]
[1734950080691,1.01611567,184.58,184.49,12.72963386]
[1734950081585,0.90770284,184.58,184.49,12.72963386]
[1734950082178,7.8631,184.59,184.51,12.72963386]
[1734950082179,6.4213,184.59,184.51,12.72963386]
[1734950082384,6.4213,184.59,184.53,12.72963386]
[1734950082698,0.90737606,184.63,184.56,12.72963386]
[1734950082900,8.71483293,184.64,184.56,12.72963386]
[1734950083405,7.27303293,184.64,184.56,12.72963386]
[1734950083803,6.3658,184.64,184.56,12.72963386]
[1734950084504,0.90719714,184.63,184.56,12.72963386]
[1734950084709,0.90726341,184.67,184.55,12.72963386]
[1734950084910,6.5355,184.66,184.48,160.476884]
[1734950085084,8.11980842,184.65,184.48,149.42963386]
[1734950085286,8.11980842,184.65,184.47,12.72963386]
[1734950085287,6.5355,184.64,184.47,12.72963386]
[1734950085482,2.34943168,184.63,184.46,14.38083386]
[1734950085683,20.0,184.59,184.46,14.38083386]
[1734950085906,23.776884,184.57,184.46,1.6512]
[1734950086105,0.90782422,184.56,184.46,1.6512]
[1734950086300,0.90782422,184.56,184.44,12.72963386]
[1734950086301,6.1106,184.53,184.44,12.72963386]
[1734950086511,7.01849672,184.53,184.44,12.72963386]
[1734950087832,7.01849672,184.53,184.28,136.7]
[1734950087833,23.776884,184.45,184.28,136.7]
[1734950088055,0.90853084,184.44,184.32,12.72963386]
[1734950088207,0.90853084,184.44,184.34,20.35807323]
[1734950088918,0.90842485,184.43,184.34,20.35807323]
[1734950089216,0.90843046,184.45,184.34,20.35807323]
[1734950089995,0.90840628,184.45,184.36,20.35807323]
[1734950090198,20.0,184.46,184.36,20.35807323]
[1734950090712,20.0,184.46,184.4,20.35807323]
[1734950091100,6.366,184.49,184.42,20.35807323]
[1734950093292,6.366,184.49,184.42,14.35807323]
[1734950094544,6.366,184.49,184.44,20.35807323]
[1734950096143,6.366,184.49,184.42,20.35807323]
[1734950100143,6.366,184.49,184.39,136.7]
[1734950100144,6.366,184.49,184.44,20.35807323]
[1734950100334,6.2219,184.54,184.45,20.35807323]
[1734950100534,0.90780953,184.53,184.44,20.35807323]
[1734950101039,6.2219,184.54,184.45,20.35807323]
[1734950101236,6.2219,184.54,184.46,20.35807323]
[1734950101439,6.95757251,184.6,184.52,20.35807323]
[1734950101644,6.3432,184.61,184.56,20.35807323]
[1734950102550,6.3432,184.61,184.57,20.35807323]
[1734950102755,7.8533,184.71,184.58,20.35807323]
[1734950103053,0.90704129,184.7,184.54,157.05807323]
[1734950103345,7.8533,184.68,184.49,20.35807323]
[1734950103545,6.4976,184.66,184.47,20.35807323]
[1734950103750,2.34946002,184.65,184.45,158.55837323]
[1734950104056,20.0,184.6,184.45,158.55837323]
[1734950104351,20.0,184.6,184.45,20.35807323]
[1734950104352,23.776884,184.58,184.45,20.35807323]
[1734950104541,6.4976,184.56,184.45,20.35807323]
[1734950104923,6.4976,184.56,184.47,20.35807323]
[1734950105732,0.90752558,184.55,184.47,20.35807323]
[1734950105938,6.4976,184.56,184.47,20.35807323]
[1734950106554,6.4976,184.56,184.49,20.35807323]
[1734950106939,6.4976,184.56,184.46,0.81275136]
[1734950107145,6.4976,184.56,184.49,20.35807323]
[1734950107958,6.4976,184.56,184.47,20.35807323]
[1734950108133,6.4976,184.56,184.48,30.0]
[1734950109149,6.4976,184.56,184.47,20.35807323]
[1734950110259,0.90753338,184.55,184.45,20.35807323]
[1734950110557,0.90753338,184.55,184.41,151.901]
[1734950110558,0.90753338,184.55,184.43,20.35807323]
[1734950111635,0.90753338,184.55,184.45,20.35807323]
[1734950112335,20.0,184.53,184.43,20.35807323]
[1734950112539,20.0,184.53,184.41,1.6444]
[1734950112540,0.90792853,184.52,184.39,20.35807323]
[1734950112739,0.90792853,184.52,184.41,20.35807323]
[1734950112938,0.90792853,184.52,184.43,20.35807323]
[1734950113939,20.0,184.53,184.43,20.35807323]
[1734950116759,20.0,184.53,184.44,20.35807323]
[1734950117738,7.9394,184.56,184.46,20.35807323]
[1734950117944,7.9394,184.56,184.47,20.35807323]
[1734950118870,0.90767701,184.55,184.46,20.35807323]
[1734950119466,0.90767701,184.55,184.45,20.35807323]
[1734950119842,0.9076877,184.55,184.45,20.35807323]
[1734950120265,20.0,184.53,184.43,20.35807323]
[1734950120587,20.0,184.48,184.38,20.35807323]
[1734950120766,0.90813854,184.47,184.38,20.35807323]
[1734950120971,2.34993854,184.47,184.36,20.35807323]
[1734950121339,2.34993854,184.47,184.35,136.7]
[1734950121340,23.776884,184.46,184.34,20.35807323]
[1734950121555,20.0,184.43,184.34,20.35807323]
[1734950122366,0.90843145,184.45,184.34,20.35807323]
[1734950122553,20.0,184.43,184.34,20.35807323]
[1734950122752,0.90838624,184.42,184.34,20.35807323]
[1734950123461,20.90842367,184.43,184.34,20.35807323]
[1734950124464,0.90842367,184.43,184.34,20.35807323]
[1734950124767,6.4017,184.44,184.38,20.35807323]
[1734950125462,20.0,184.37,184.21,145.06053054]
[1734950125638,0.90890344,184.36,184.26,8.36053054]
[1734950125839,7.4838,184.35,184.26,8.36053054]
[1734950126039,20.0,184.32,184.26,8.36053054]
[1734950126238,0.90901974,184.31,184.26,8.36053054]
[1734950126467,0.90901974,184.31,184.22,20.35807323]
[1734950126964,0.909022,184.31,184.22,20.35807323]
[1734950127170,0.90899905,184.31,184.22,20.35807323]
[1734950127666,0.90899905,184.31,184.2,20.35807323]
[1734950132374,20.0,184.32,184.22,20.35807323]
[1734950132548,7.4838,184.35,184.24,20.35807323]
[1734950132753,0.90892026,184.34,184.2,20.35807323]
[1734950133655,20.0,184.32,184.19,136.7]
[1734950133856,20.0,184.3,184.19,136.7]
[1734950134054,0.90924633,184.29,184.19,136.7]
[1734950134278,6.181,184.28,184.18,20.35807323]
[1734950134481,0.90925966,184.27,184.18,20.35807323]
[1734950135978,6.181,184.28,184.2,20.35807323]
[1734950136772,6.181,184.28,184.21,20.35807323]
[1734950138669,6.0396,184.34,184.22,20.35807323]
[1734950138870,6.94848545,184.34,184.24,20.35807323]
[1734950139074,6.94848545,184.34,184.23,0.81383863]
[1734950139075,6.0396,184.34,184.23,20.35807323]
[1734950139274,6.0396,184.34,184.23,18.35807323]
[1734950141086,0.90888148,184.33,184.23,18.35807323]
[1734950141271,6.0396,184.34,184.23,18.35807323]
[1734950141679,6.0396,184.34,184.25,20.35807323]
[1734950141882,6.0396,184.34,184.26,20.35807323]
[1734950142687,6.0396,184.34,184.25,20.35807323]
[1734950142979,6.0396,184.34,184.24,20.35807323]
[1734950143186,0.90883439,184.33,184.22,20.35807323]
[1734950143560,6.0396,184.34,184.23,20.35807323]
[1734950143758,6.0396,184.34,184.24,20.35807323]
[1734950144281,0.90885738,184.33,184.24,20.35807323]
[1734950144482,20.0,184.31,184.21,20.35807323]
[1734950144784,0.90911822,184.3,184.2,20.35807323]
[1734950145786,20.0,184.31,184.2,20.35807323]
[1734950146858,0.90904378,184.33,184.22,20.35807323]
[1734950147062,6.0396,184.34,184.24,20.35807323]
[1734950147274,6.0396,184.34,184.28,20.35807323]
[1734950147679,6.0396,184.34,184.28,21.17163864]
[1734950148181,6.0396,184.34,184.28,20.35807323]
[1734950148367,6.0396,184.34,184.26,20.35807323]
[1734950148985,6.0396,184.34,184.28,20.35807323]
[1734950151592,0.90869772,184.33,184.24,20.35807323]
[1734950151890,0.90891297,184.33,184.24,20.35807323]
[1734950152090,6.0396,184.34,184.24,20.35807323]
[1734950152996,0.90882901,184.33,184.24,20.35807323]
[1734950153375,6.0396,184.34,184.24,20.35807323]
[1734950154574,0.90887117,184.33,184.24,20.35807323]
[1734950154777,6.0396,184.34,184.24,20.35807323]
[1734950154977,0.90885622,184.33,184.24,20.35807323]
[1734950155290,6.0396,184.34,184.24,20.35807323]
[1734950156270,6.0396,184.34,184.25,12.7353699]
[1734950157579,6.0396,184.34,184.25,26.3032699]
[1734950157780,6.0396,184.34,184.27,12.7353699]
[1734950159798,0.90858057,184.33,184.25,136.7]
[1734950160172,0.90858057,184.33,184.21,12.7353699]
[1734950160988,0.90858057,184.33,184.23,12.7353699]
[1734950161190,0.90891642,184.33,184.23,12.7353699]
[1734950162903,0.90891642,184.33,184.21,13.54923782]
[1734950163991,1.4418,184.32,184.21,13.54923782]
[1734950164195,1.4418,184.32,184.21,12.7353699]
[1734950164196,0.90907534,184.31,184.21,12.7353699]
[1734950164391,1.4418,184.32,184.21,0.8139588]
[1734950164600,1.4418,184.32,184.24,12.7353699]
[1734950166103,1.4418,184.32,184.22,14.38450173]
[1734950166409,0.90881371,184.31,184.21,149.4353699]
[1734950167707,0.90881371,184.31,184.21,12.7353699]
[1734950170706,1.4418,184.32,184.23,12.7353699]
[1734950170883,1.4418,184.32,184.27,12.7353699]
[1734950172416,6.0396,184.34,184.27,12.7353699]
[1734950173816,6.0396,184.34,184.26,12.7353699]
[1734950174315,6.0396,184.34,184.3,12.7353699]
[1734950174499,6.5984,184.39,184.33,12.7353699]
[1734950174704,6.5984,184.39,184.35,12.7353699]
[1734950175017,6.5984,184.39,184.32,12.7353699]
[1734950175327,6.5984,184.39,184.3,12.7353699]
[1734950177421,6.5984,184.39,184.31,12.7353699]
[1734950178615,6.5984,184.39,184.3,12.7353699]
[1734950182420,0.90852883,184.38,184.27,149.4353699]
[1734950182923,0.90852883,184.38,184.27,12.7353699]
[1734950183126,0.90852883,184.38,184.28,12.7353699]
[1734950183614,6.5984,184.39,184.29,12.7353699]
[1734950183805,6.5984,184.39,184.3,12.7353699]
[1734950186021,6.5984,184.39,184.29,12.7353699]
[1734950186399,6.5984,184.39,184.3,12.7353699]
[1734950188022,6.5984,184.39,184.32,12.7353699]
[1734950188239,6.5984,184.39,184.33,13.54882642]
[1734950188435,6.3626,184.44,184.35,12.7353699]
[1734950188606,6.3626,184.44,184.36,13.54861776]
[1734950189718,6.3626,184.44,184.39,12.7353699]
[1734950190029,6.6526,184.49,184.42,12.7353699]
[1734950190203,6.6526,184.49,184.43,0.81298056]
[1734950192304,0.90802294,184.48,184.4,136.7]
[1734950192505,0.90807063,184.48,184.4,136.7]
[1734950193336,6.6526,184.49,184.4,136.7]
[1734950193512,0.90805393,184.48,184.4,136.7]
[1734950193714,6.6526,184.49,184.4,136.7]
[1734950194634,6.6526,184.49,184.41,0.81316923]
[1734950195333,6.6526,184.49,184.38,12.7353699]
[1734950195836,6.6526,184.49,184.39,0.81308838]
[1734950197828,6.6526,184.49,184.39,13.54845828]
[1734950198027,0.9079471,184.48,184.38,136.7]
[1734950200231,20.0,184.46,184.35,149.4353699]
[1734950200634,20.0,184.46,184.36,0.81321976]
[1734950200932,20.0,184.46,184.37,12.7353699]
[1734950202335,6.6526,184.49,184.37,12.7353699]
[1734950202535,20.0,184.46,184.37,12.7353699]
[1734950204322,20.0,184.46,184.36,13.54858966]
[1734950207329,20.0,184.46,184.37,23.776884]
[1734950207647,20.0,184.46,184.37,36.5122539]
[1734950208150,6.6526,184.49,184.39,36.5122539]
[1734950208347,6.6526,184.49,184.4,13.54846937]
[1734950209948,6.6526,184.49,184.4,0.81309947]
[1734950210247,6.6526,184.49,184.39,36.5122539]
[1734950212545,0.90811053,184.55,184.38,0.81311679]
[1734950212546,6.2877,184.54,184.46,23.776884]
[1734950212725,6.2877,184.54,184.47,12.7353699]
[1734950212925,6.2877,184.54,184.48,13.54808119]
[1734950213751,6.2877,184.54,184.48,0.81271129]
[1734950215150,6.2877,184.54,184.48,23.776884]
[1734950217658,6.2877,184.54,184.47,12.7353699]
[1734950219345,6.2877,184.54,184.46,136.7]
[1734950221753,6.2877,184.54,184.45,12.7353699]
[1734950222766,6.2877,184.54,184.46,12.7353699]
[1734950223562,6.2877,184.54,184.45,36.5122539]
[1734950224461,6.2877,184.54,184.46,0.81280947]
[1734950224660,6.2877,184.54,184.47,36.5122539]
[1734950224842,6.1907,184.58,184.51,23.776884]
[1734950225047,6.1907,184.58,184.52,13.54791836]
[1734950225558,6.1907,184.58,184.53,12.7353699]
[1734950225749,6.5499,184.64,184.56,12.7353699]
[1734950225946,6.5499,184.64,184.57,13.54770825]
[1734950226153,6.5499,184.64,184.58,12.7353699]
[1734950226357,6.5499,184.64,184.59,0.81225313]
[1734950230479,6.5036,184.69,184.61,20.0]
[1734950230683,6.5036,184.69,184.64,12.7353699]
[1734950230989,6.3944,184.74,184.66,12.7353699]
[1734950231277,6.3944,184.74,184.67,13.54734065]
[1734950231479,6.3944,184.74,184.68,12.7353699]
[1734950231788,0.6821571,184.76,184.69,0.81181473]
[1734950231967,0.6821571,184.76,184.68,136.7]
[1734950233151,6.3554,184.75,184.64,12.7353699]
[1734950233455,6.3554,184.75,184.63,149.4353699]
[1734950233653,20.0,184.72,184.63,149.4353699]
[1734950235387,20.0,184.72,184.62,12.7353699]
[1734950235570,21.4418,184.72,184.6,12.7353699]
[1734950235757,21.4418,184.72,184.61,12.7353699]
[1734950236164,21.4418,184.72,184.62,12.7353699]
[1734950236379,21.4418,184.72,184.63,12.7353699]
[1734950236581,21.4418,184.72,184.62,12.7353699]
[1734950237798,21.4418,184.72,184.58,0.81204098]
[1734950238088,20.0,184.68,184.56,12.7353699]
[1734950238262,0.90706197,184.67,184.57,12.7353699]
[1734950238459,0.90706197,184.67,184.56,12.7353699]
[1734950238663,20.0,184.68,184.56,13.5477528]
[1734950238878,20.0,184.68,184.57,12.7353699]
[1734950239084,0.906988,184.67,184.57,12.7353699]
[1734950239293,23.776884,184.66,184.56,0.8123829]
[1734950239583,0.90713925,184.65,184.56,0.8123829]
[1734950239788,23.776884,184.66,184.56,0.8123829]
[1734950240092,0.90713747,184.67,184.56,13.5477528]
[1734950240093,23.776884,184.67,184.56,13.5477528]
[1734950240395,24.68394461,184.67,184.56,13.5477528]
[1734950240774,24.68394461,184.67,184.56,0.8123829]
[1734950240960,24.68394461,184.67,184.55,12.7353699]
[1734950241161,8.0254,184.63,184.52,12.7353699]
[1734950241367,24.68416995,184.62,184.51,13.54792892]
[1734950241567,20.0,184.6,184.53,12.7353699]
[1734950241767,6.5836,184.63,184.54,13.54783319]
[1734950241985,6.5836,184.63,184.55,12.7353699]
[1734950243870,6.5836,184.63,184.54,12.7353699]
[1734950244193,6.5836,184.63,184.55,12.7353699]
[1734950244489,6.5836,184.63,184.53,0.81242745]
[1734950244694,21.4418,184.59,184.47,138.2545]
[1734950244899,21.4418,184.59,184.49,12.7353699]
[1734950245081,21.4418,184.59,184.48,12.7353699]
[1734950245282,0.90750608,184.58,184.48,12.7353699]
[1734950245492,23.776884,184.57,184.48,12.7353699]
[1734950245675,6.6518,184.55,184.48,12.7353699]
[1734950245877,6.6518,184.55,184.46,12.7353699]
[1734950246900,6.6518,184.55,184.49,12.7353699]
[1734950247199,6.6518,184.55,184.49,13.54802718]
[1734950247390,6.6518,184.55,184.49,12.7353699]
[1734950248097,6.6518,184.55,184.47,149.4353699]
[1734950248977,20.0,184.51,184.41,21.694369]
[1734950249294,6.1771,184.49,184.38,149.4353699]
[1734950249497,6.1771,184.49,184.4,12.7353699]
[1734950249794,6.1771,184.49,184.42,12.7353699]
[1734950250188,7.6189,184.54,184.46,12.7353699]
[1734950253506,6.1771,184.54,184.48,12.7353699]
[1734950253877,6.1771,184.54,184.5,12.7353699]
[1734950254210,6.1771,184.54,184.49,12.7353699]
[1734950255100,6.1771,184.54,184.48,149.4353699]
[1734950257279,7.6251,184.58,184.5,12.7353699]
[1734950257705,7.6251,184.58,184.49,13.54801745]
[1734950257901,7.6251,184.58,184.52,12.7353699]
[1734950258216,6.1833,184.58,184.53,13.54787643]
[1734950258579,6.235,184.62,184.55,12.7353699]
[1734950258781,6.235,184.62,184.55,13.5477579]
[1734950259390,6.235,184.62,184.55,0.812388]
[1734950262794,6.235,184.62,184.56,23.776884]
[1734950262989,6.0635,184.67,184.58,12.7353699]
[1734950263194,6.0635,184.67,184.59,13.54757844]
[1734950263815,6.0635,184.67,184.6,36.5122539]
[1734950264002,6.0635,184.67,184.61,0.81209552]
[1734950264201,6.0635,184.67,184.59,149.4353699]
[1734950264506,6.0635,184.67,184.58,12.7353699]
[1734950264714,6.0635,184.67,184.58,13.54757728]
[1734950264895,6.0635,184.67,184.59,12.7353699]
[1734950265618,6.0635,184.67,184.58,13.54757728]
[1734950267305,6.0635,184.67,184.54,12.7353699]
[1734950267510,0.90684292,184.66,184.53,150.9371699]
[1734950267717,20.0,184.62,184.53,12.7353699]
[1734950268013,1.4418,184.6,184.51,12.7353699]
[1734950269203,1.4418,184.6,184.53,12.7353699]
[1734950269790,1.4418,184.6,184.53,13.5478646]
[1734950270517,6.5026,184.61,184.55,12.7353699]
[1734950271515,6.5026,184.61,184.53,13.54773071]
[1734950271821,6.5026,184.61,184.53,33.54773071]
[1734950272923,6.5026,184.61,184.56,12.7353699]
[1734950273109,6.5026,184.61,184.57,13.54766955]
[1734950274094,6.5026,184.61,184.57,0.81229965]
[1734950275125,6.5026,184.61,184.54,149.4353699]
[1734950276438,6.5026,184.61,184.54,136.7]
[1734950276805,0.90739389,184.6,184.48,150.9410699]
[1734950277011,1.4418,184.57,184.47,12.7353699]
[1734950277219,1.4418,184.57,184.48,0.81275769]
[1734950277517,1.4418,184.57,184.48,13.54812759]
[1734950278025,1.4418,184.57,184.48,12.7353699]
[1734950279615,2.34931376,184.57,184.48,12.7353699]
[1734950279814,1.4418,184.57,184.48,12.7353699]
[1734950280417,6.1894,184.56,184.46,13.54811204]
[1734950281518,6.1894,184.56,184.48,12.7353699]
[1734950282030,20.0,184.53,184.45,0.81268841]
[1734950282234,20.0,184.52,184.42,149.4353699]
[1734950282436,20.0,184.52,184.42,12.7353699]
[1734950282622,6.019,184.5,184.4,12.7353699]
[1734950282822,1.4418,184.48,184.4,12.7353699]
[1734950283011,20.0,184.47,184.4,12.7353699]
[1734950283215,20.0,184.47,184.35,138.3659]
[1734950283216,20.90806746,184.47,184.38,12.7353699]
[1734950283416,20.0,184.47,184.38,12.7353699]
[1734950284040,20.0,184.47,184.39,0.81319241]
[1734950284215,20.0,184.47,184.4,12.7353699]
[1734950284415,20.0,184.47,184.39,0.81319241]
[1734950285040,1.4418,184.48,184.4,12.7353699]
[1734950285218,1.4418,184.48,184.4,13.54845193]
[1734950285911,1.4418,184.48,184.4,12.7353699]
[1734950286639,20.90807457,184.47,184.38,12.7353699]
[1734950286942,20.0,184.47,184.38,12.7353699]
[1734950288932,20.0,184.47,184.38,13.54857155]
[1734950289542,20.0,184.47,184.38,12.7353699]
[1734950290330,0.90809136,184.46,184.36,149.4353699]
[1734950290732,20.0,184.47,184.36,149.4353699]
[1734950290916,20.90814441,184.47,184.36,12.7353699]
[1734950291117,30.72812246,184.46,184.34,0.81324103]
[1734950291422,20.0,184.43,184.33,12.7353699]
[1734950291848,7.4849,184.42,184.33,0.81339322]
[1734950292030,20.0,184.39,184.26,136.7]
[1734950292223,20.0,184.39,184.3,12.7353699]